[Event "Titled Tuesday Blitz November 14 Early 2023"]
[White "JuniorJumper"]
[Black "Kashtanov, Ruslan"]
[BlackFideId "4124871"]
[WhiteElo "2584"]
[BlackElo "2447"]
[Result "1-0"]
[Round "7"]
[TimeControl "180+1"]
[Date "2023.11.14"]
[WhiteClock "0:00:04"]
[BlackClock "0:00:00"]
[Board "124"]

1. b3 {[%clk 0:03:00]}  e5 {[%clk 0:02:53]} 2. Bb2 {[%clk 0:02:58]}  Nc6 {[%clk 0:02:53]} 3. e3 {[%clk 0:02:56]}  g6 {[%clk 0:02:53]} 4. Bb5 {[%clk 0:02:48]}  Bg7 {[%clk 0:02:53]} 5. Nf3 {[%clk 0:02:47]}  Nge7 {[%clk 0:02:51]} 6. Nc3 {[%clk 0:02:33]}  O-O {[%clk 0:02:50]} 7. d4 {[%clk 0:02:33]}  a6 {[%clk 0:02:41]} 8. Bxc6 {[%clk 0:02:30]}  Nxc6 {[%clk 0:02:40]} 9. d5 {[%clk 0:02:30]}  Ne7 {[%clk 0:02:27]} 10. d6 {[%clk 0:02:30]}  cxd6 {[%clk 0:02:22]} 11. e4 {[%clk 0:02:31]}  Qc7 {[%clk 0:02:06]} 12. O-O {[%clk 0:02:28]}  b5 {[%clk 0:02:05]} 13. Qd2 {[%clk 0:02:24]}  Bb7 {[%clk 0:01:54]} 14. Ba3 {[%clk 0:02:22]}  Rfc8 {[%clk 0:01:49]} 15. Bb4 {[%clk 0:02:09]}  a5 {[%clk 0:01:05]} 16. Nxb5 {[%clk 0:01:51]}  Qb6 {[%clk 0:01:04]} 17. Bxd6 {[%clk 0:01:42]}  Qxb5 {[%clk 0:00:56]} 18. Bxe7 {[%clk 0:01:42]}  Bxe4 {[%clk 0:00:54]} 19. c4 {[%clk 0:01:39]}  Qc6 {[%clk 0:00:52]} 20. Ne1 {[%clk 0:01:33]}  Qe6 {[%clk 0:00:26]} 21. Bh4 {[%clk 0:01:17]}  Bb7 {[%clk 0:00:23]} 22. Rd1 {[%clk 0:01:15]}  d5 {[%clk 0:00:18]} 23. cxd5 {[%clk 0:01:14]}  Qd6 {[%clk 0:00:18]} 24. Nc2 {[%clk 0:01:10]}  f5 {[%clk 0:00:17]} 25. Ne3 {[%clk 0:01:08]}  Ba6 {[%clk 0:00:16]} 26. Rfe1 {[%clk 0:01:07]}  f4 {[%clk 0:00:13]} 27. Nc2 {[%clk 0:00:28]}  g5 {[%clk 0:00:13]} 28. Bxg5 {[%clk 0:00:28]}  Qg6 {[%clk 0:00:13]} 29. Be7 {[%clk 0:00:17]}  Rxc2 {[%clk 0:00:11]} 30. Qxa5 {[%clk 0:00:12]}  f3 {[%clk 0:00:11]} 31. g3 {[%clk 0:00:13]}  Qf5 {[%clk 0:00:09]} 32. d6 {[%clk 0:00:09]}  Bb7 {[%clk 0:00:04]} 33. Qb5 {[%clk 0:00:06]}  Qh3 {[%clk 0:00:03]} 34. Qf1 {[%clk 0:00:07]}  Qd7 {[%clk 0:00:03]} 35. Qd3 {[%clk 0:00:06]}  Raxa2 {[%clk 0:00:02]} 36. Rf1 {[%clk 0:00:05]}  Re2 {[%clk 0:00:00]} 37. Qc4+ {[%clk 0:00:04]} 1-0


[Site "https://www.chess.com"]

[Event "Titled Tuesday Blitz November 14 Early 2023"]
[White "Cheer_Down"]
[Black "Herman, Matthew"]
[BlackFideId "2028964"]
[WhiteElo "2391"]
[BlackElo "2524"]
[Result "0-1"]
[Round "7"]
[TimeControl "180+1"]
[Date "2023.11.14"]
[WhiteClock "0:00:20"]
[BlackClock "0:00:10"]
[Board "129"]

1. c4 {[%clk 0:03:00]}  Nf6 {[%clk 0:03:00]} 2. d4 {[%clk 0:02:58]}  g6 {[%clk 0:03:00]} 3. Nc3 {[%clk 0:02:57]}  Bg7 {[%clk 0:03:01]} 4. e4 {[%clk 0:02:57]}  d6 {[%clk 0:03:01]} 5. f3 {[%clk 0:02:50]}  O-O {[%clk 0:03:01]} 6. Be3 {[%clk 0:02:50]}  e5 {[%clk 0:03:01]} 7. Nge2 {[%clk 0:02:50]}  c6 {[%clk 0:03:01]} 8. d5 {[%clk 0:02:47]}  a6 {[%clk 0:02:44]} 9. Ng3 {[%clk 0:02:29]}  b5 {[%clk 0:02:38]} 10. dxc6 {[%clk 0:02:28]}  b4 {[%clk 0:02:07]} 11. Nd5 {[%clk 0:02:26]}  Nxc6 {[%clk 0:02:07]} 12. Bd3 {[%clk 0:02:09]}  Rb8 {[%clk 0:01:54]} 13. O-O {[%clk 0:02:08]}  Nd7 {[%clk 0:01:47]} 14. Qa4 {[%clk 0:02:00]}  Nd4 {[%clk 0:01:32]} 15. Bxd4 {[%clk 0:01:21]}  exd4 {[%clk 0:01:32]} 16. Nxb4 {[%clk 0:01:21]}  Nc5 {[%clk 0:01:32]} 17. Qa3 {[%clk 0:01:21]}  Rxb4 {[%clk 0:01:32]} 18. Qxb4 {[%clk 0:01:20]}  Nxd3 {[%clk 0:01:33]} 19. Qd2 {[%clk 0:01:21]}  Nc5 {[%clk 0:01:21]} 20. Kh1 {[%clk 0:01:17]}  a5 {[%clk 0:01:18]} 21. b3 {[%clk 0:01:15]}  Qb6 {[%clk 0:01:01]} 22. Rad1 {[%clk 0:01:15]}  Qb4 {[%clk 0:00:59]} 23. Ne2 {[%clk 0:01:07]}  d3 {[%clk 0:00:46]} 24. Qxb4 {[%clk 0:00:55]}  axb4 {[%clk 0:00:46]} 25. Nc1 {[%clk 0:00:56]}  Be6 {[%clk 0:00:40]} 26. Nxd3 {[%clk 0:00:56]}  Bc3 {[%clk 0:00:41]} 27. Nf4 {[%clk 0:00:46]}  Be5 {[%clk 0:00:36]} 28. Nd3 {[%clk 0:00:46]}  Nxd3 {[%clk 0:00:33]} 29. Rxd3 {[%clk 0:00:46]}  g5 {[%clk 0:00:27]} 30. g3 {[%clk 0:00:45]}  f5 {[%clk 0:00:26]} 31. exf5 {[%clk 0:00:42]}  Bxf5 {[%clk 0:00:26]} 32. Rd2 {[%clk 0:00:41]}  Be4 {[%clk 0:00:20]} 33. Kg2 {[%clk 0:00:32]}  Rxf3 {[%clk 0:00:09]} 34. Rxf3 {[%clk 0:00:31]}  g4 {[%clk 0:00:10]} 35. c5 {[%clk 0:00:24]}  gxf3+ {[%clk 0:00:09]} 36. Kf2 {[%clk 0:00:24]}  dxc5 {[%clk 0:00:09]} 37. Rd7 {[%clk 0:00:22]}  Bd4+ {[%clk 0:00:09]} 38. Kf1 {[%clk 0:00:22]}  Bd3+ {[%clk 0:00:09]} 39. Ke1 {[%clk 0:00:20]}  f2+ {[%clk 0:00:10]} 0-1


[Site "https://www.chess.com"]

[Event "Titled Tuesday Blitz November 14 Early 2023"]
[White "Osmak, Yuliia"]
[Black "EvgenyBurmakin"]
[WhiteFideId "14101602"]
[WhiteElo "2516"]
[BlackElo "2359"]
[Result "0-1"]
[Round "7"]
[TimeControl "180+1"]
[Date "2023.11.14"]
[WhiteClock "0:00:00"]
[BlackClock "0:00:02"]
[Board "131"]

1. e4 {[%clk 0:03:00]}  c5 {[%clk 0:02:59]} 2. Nf3 {[%clk 0:02:59]}  d6 {[%clk 0:02:59]} 3. Bb5+ {[%clk 0:02:58]}  Nd7 {[%clk 0:02:57]} 4. a4 {[%clk 0:02:58]}  a6 {[%clk 0:02:56]} 5. Be2 {[%clk 0:02:37]}  Ngf6 {[%clk 0:02:50]} 6. Nc3 {[%clk 0:02:36]}  b6 {[%clk 0:02:44]} 7. d4 {[%clk 0:02:31]}  cxd4 {[%clk 0:02:42]} 8. Qxd4 {[%clk 0:02:32]}  Bb7 {[%clk 0:02:38]} 9. Bg5 {[%clk 0:02:27]}  e6 {[%clk 0:02:29]} 10. O-O {[%clk 0:02:25]}  Be7 {[%clk 0:02:28]} 11. Rfd1 {[%clk 0:02:12]}  Qc7 {[%clk 0:02:22]} 12. Nd2 {[%clk 0:02:01]}  O-O {[%clk 0:01:12]} 13. Nc4 {[%clk 0:01:48]}  Nc5 {[%clk 0:01:07]} 14. Bf3 {[%clk 0:01:35]}  Rfd8 {[%clk 0:00:58]} 15. a5 {[%clk 0:01:21]}  b5 {[%clk 0:00:52]} 16. Nb6 {[%clk 0:01:21]}  Rab8 {[%clk 0:00:52]} 17. Qe3 {[%clk 0:01:12]}  Ncd7 {[%clk 0:00:34]} 18. Rd2 {[%clk 0:00:58]}  Bc6 {[%clk 0:00:31]} 19. Nxd7 {[%clk 0:00:46]}  Rxd7 {[%clk 0:00:32]} 20. h3 {[%clk 0:00:40]}  Rbd8 {[%clk 0:00:28]} 21. Bf4 {[%clk 0:00:36]}  Qb7 {[%clk 0:00:24]} 22. Qe2 {[%clk 0:00:27]}  h6 {[%clk 0:00:20]} 23. Rad1 {[%clk 0:00:26]}  d5 {[%clk 0:00:16]} 24. e5 {[%clk 0:00:22]}  Ne4 {[%clk 0:00:14]} 25. Nxe4 {[%clk 0:00:16]}  dxe4 {[%clk 0:00:15]} 26. Rxd7 {[%clk 0:00:16]}  Rxd7 {[%clk 0:00:13]} 27. Rxd7 {[%clk 0:00:15]}  Qxd7 {[%clk 0:00:13]} 28. Bxe4 {[%clk 0:00:14]}  Qd4 {[%clk 0:00:05]} 29. Bxc6 {[%clk 0:00:13]}  Qxf4 {[%clk 0:00:05]} 30. Bb7 {[%clk 0:00:12]}  Qc1+ {[%clk 0:00:02]} 31. Kh2 {[%clk 0:00:12]}  Qxb2 {[%clk 0:00:02]} 32. Bxa6 {[%clk 0:00:12]}  b4 {[%clk 0:00:02]} 33. Bc4 {[%clk 0:00:12]}  Qc3 {[%clk 0:00:01]} 34. a6 {[%clk 0:00:11]}  Bc5 {[%clk 0:00:02]} 35. Bd3 {[%clk 0:00:10]}  Qd4 {[%clk 0:00:02]} 36. f3 {[%clk 0:00:10]}  Qg1+ {[%clk 0:00:01]} 37. Kg3 {[%clk 0:00:10]}  Qd4 {[%clk 0:00:01]} 38. h4 {[%clk 0:00:08]}  h5 {[%clk 0:00:02]} 39. Kh3 {[%clk 0:00:08]}  g6 {[%clk 0:00:02]} 40. Qd1 {[%clk 0:00:08]}  Qf2 {[%clk 0:00:02]} 41. Qb1 {[%clk 0:00:06]}  Be3 {[%clk 0:00:02]} 42. Qb3 {[%clk 0:00:00]}  Bf4 {[%clk 0:00:02]} 0-1


[Site "https://www.chess.com"]

[Event "Titled Tuesday Blitz November 14 Early 2023"]
[White "HeroRubiksCube"]
[Black "Mejia, Cherry Ann"]
[BlackFideId "5206880"]
[WhiteElo "2515"]
[BlackElo "2357"]
[Result "0-1"]
[Round "7"]
[TimeControl "180+1"]
[Date "2023.11.14"]
[WhiteClock "0:00:05"]
[BlackClock "0:00:05"]
[Board "132"]

1. e4 {[%clk 0:03:00]}  c5 {[%clk 0:02:57]} 2. Nc3 {[%clk 0:03:00]}  a6 {[%clk 0:02:53]} 3. Nge2 {[%clk 0:02:58]}  b5 {[%clk 0:02:51]} 4. g3 {[%clk 0:02:58]}  Bb7 {[%clk 0:02:48]} 5. Bg2 {[%clk 0:02:59]}  e6 {[%clk 0:02:48]} 6. O-O {[%clk 0:02:58]}  Nf6 {[%clk 0:02:48]} 7. d4 {[%clk 0:02:59]}  cxd4 {[%clk 0:02:41]} 8. Nxd4 {[%clk 0:02:59]}  Qc7 {[%clk 0:02:41]} 9. Re1 {[%clk 0:02:56]}  d6 {[%clk 0:02:40]} 10. Nd5 {[%clk 0:02:36]}  Qd8 {[%clk 0:02:05]} 11. Nxf6+ {[%clk 0:02:26]}  gxf6 {[%clk 0:02:00]} 12. Be3 {[%clk 0:02:21]}  Bg7 {[%clk 0:01:53]} 13. Qd2 {[%clk 0:02:21]}  Nd7 {[%clk 0:01:49]} 14. Bh6 {[%clk 0:02:18]}  O-O {[%clk 0:01:48]} 15. Qf4 {[%clk 0:02:06]}  Ne5 {[%clk 0:01:46]} 16. Qh4 {[%clk 0:01:44]}  Ng6 {[%clk 0:01:43]} 17. Qh5 {[%clk 0:01:41]}  Rc8 {[%clk 0:01:42]} 18. Bxg7 {[%clk 0:01:39]}  Kxg7 {[%clk 0:01:42]} 19. h4 {[%clk 0:01:37]}  Rc5 {[%clk 0:01:36]} 20. Qg4 {[%clk 0:01:36]}  h5 {[%clk 0:01:29]} 21. Qe2 {[%clk 0:01:32]}  Qb6 {[%clk 0:01:20]} 22. Rad1 {[%clk 0:01:28]}  Rfc8 {[%clk 0:01:19]} 23. c3 {[%clk 0:01:29]}  d5 {[%clk 0:01:14]} 24. exd5 {[%clk 0:01:16]}  Bxd5 {[%clk 0:01:12]} 25. Nf5+ {[%clk 0:01:12]}  exf5 {[%clk 0:01:03]} 26. Bxd5 {[%clk 0:01:12]}  f4 {[%clk 0:00:59]} 27. Kg2 {[%clk 0:01:02]}  Rd8 {[%clk 0:00:52]} 28. Bf3 {[%clk 0:00:57]}  Re5 {[%clk 0:00:48]} 29. Qc2 {[%clk 0:00:53]}  Rde8 {[%clk 0:00:31]} 30. Rxe5 {[%clk 0:00:53]}  Rxe5 {[%clk 0:00:31]} 31. Qd3 {[%clk 0:00:49]}  fxg3 {[%clk 0:00:30]} 32. fxg3 {[%clk 0:00:49]}  Re3 {[%clk 0:00:30]} 33. Qd4 {[%clk 0:00:38]}  Qe6 {[%clk 0:00:28]} 34. Bxh5 {[%clk 0:00:36]}  Re2+ {[%clk 0:00:22]} 35. Bxe2 {[%clk 0:00:35]}  Qxe2+ {[%clk 0:00:23]} 36. Kh3 {[%clk 0:00:26]}  Ne5 {[%clk 0:00:17]} 37. Rd2 {[%clk 0:00:08]}  Qf1+ {[%clk 0:00:16]} 38. Rg2 {[%clk 0:00:08]}  Qf5+ {[%clk 0:00:14]} 39. g4 {[%clk 0:00:06]}  Qf3+ {[%clk 0:00:13]} 40. Kh2 {[%clk 0:00:07]}  Qf1 {[%clk 0:00:06]} 41. g5 {[%clk 0:00:06]}  Nf3+ {[%clk 0:00:06]} 42. Kh3 {[%clk 0:00:06]}  Nxd4 {[%clk 0:00:06]} 43. cxd4 {[%clk 0:00:07]}  Qf5+ {[%clk 0:00:04]} 44. Kh2 {[%clk 0:00:07]}  Qf4+ {[%clk 0:00:04]} 45. Kh3 {[%clk 0:00:07]}  fxg5 {[%clk 0:00:04]} 46. Rxg5+ {[%clk 0:00:07]}  Kf6 {[%clk 0:00:04]} 47. Rg4 {[%clk 0:00:08]}  Qf3+ {[%clk 0:00:04]} 48. Rg3 {[%clk 0:00:08]}  Qf5+ {[%clk 0:00:05]} 49. Kh2 {[%clk 0:00:08]}  Qc2+ {[%clk 0:00:04]} 50. Rg2 {[%clk 0:00:07]}  Qc7+ {[%clk 0:00:05]} 51. Kh3 {[%clk 0:00:08]}  Kf5 {[%clk 0:00:05]} 52. Rf2+ {[%clk 0:00:08]}  Ke6 {[%clk 0:00:05]} 53. b3 {[%clk 0:00:06]}  f5 {[%clk 0:00:05]} 54. Kg2 {[%clk 0:00:06]}  Qc6+ {[%clk 0:00:05]} 55. Kg1 {[%clk 0:00:05]}  Qe4 {[%clk 0:00:05]} 56. Kf1 {[%clk 0:00:06]}  Qxd4 {[%clk 0:00:06]} 57. Ke1 {[%clk 0:00:05]}  Kf6 {[%clk 0:00:04]} 58. h5 {[%clk 0:00:05]}  Qa1+ {[%clk 0:00:04]} 59. Ke2 {[%clk 0:00:06]}  Qxa2+ {[%clk 0:00:04]} 60. Kf1 {[%clk 0:00:05]}  Qxb3 {[%clk 0:00:05]} 0-1


[Site "https://www.chess.com"]

[Event "Titled Tuesday Blitz November 14 Early 2023"]
[White "Lebedev, Artem S."]
[Black "Cristi_Coca"]
[WhiteFideId "34272747"]
[WhiteElo "2341"]
[BlackElo "2506"]
[Result "0-1"]
[Round "7"]
[TimeControl "180+1"]
[Date "2023.11.14"]
[WhiteClock "0:00:00"]
[BlackClock "0:00:32"]
[Board "133"]

1. e4 {[%clk 0:03:00]}  c5 {[%clk 0:02:58]} 2. Nf3 {[%clk 0:02:59]}  e6 {[%clk 0:02:59]} 3. d4 {[%clk 0:02:59]}  cxd4 {[%clk 0:02:59]} 4. Nxd4 {[%clk 0:02:59]}  a6 {[%clk 0:03:00]} 5. Nc3 {[%clk 0:02:58]}  b5 {[%clk 0:03:01]} 6. Bd3 {[%clk 0:02:59]}  Bb7 {[%clk 0:03:01]} 7. O-O {[%clk 0:02:58]}  Qc7 {[%clk 0:03:01]} 8. Qe2 {[%clk 0:02:58]}  Nc6 {[%clk 0:03:01]} 9. Nxc6 {[%clk 0:02:53]}  Qxc6 {[%clk 0:03:02]} 10. Bd2 {[%clk 0:02:46]}  Nf6 {[%clk 0:03:02]} 11. Rfe1 {[%clk 0:02:45]}  Bc5 {[%clk 0:03:01]} 12. a4 {[%clk 0:02:18]}  b4 {[%clk 0:03:00]} 13. Na2 {[%clk 0:02:18]}  a5 {[%clk 0:02:51]} 14. c3 {[%clk 0:02:18]}  Qb6 {[%clk 0:02:40]} 15. Be3 {[%clk 0:02:00]}  O-O {[%clk 0:02:07]} 16. Bxc5 {[%clk 0:01:36]}  Qxc5 {[%clk 0:02:08]} 17. Qe3 {[%clk 0:01:37]}  Qxe3 {[%clk 0:01:49]} 18. Rxe3 {[%clk 0:01:37]}  bxc3 {[%clk 0:01:49]} 19. Nxc3 {[%clk 0:01:37]}  d5 {[%clk 0:01:48]} 20. exd5 {[%clk 0:01:33]}  Nxd5 {[%clk 0:01:49]} 21. Nxd5 {[%clk 0:01:28]}  Bxd5 {[%clk 0:01:50]} 22. Bb5 {[%clk 0:01:28]}  Rfc8 {[%clk 0:01:50]} 23. Rc3 {[%clk 0:01:24]}  Rxc3 {[%clk 0:01:49]} 24. bxc3 {[%clk 0:01:24]}  Rc8 {[%clk 0:01:49]} 25. Rc1 {[%clk 0:01:24]}  Bc4 {[%clk 0:01:47]} 26. f3 {[%clk 0:01:21]}  Rc5 {[%clk 0:01:45]} 27. Rb1 {[%clk 0:01:11]}  Kf8 {[%clk 0:01:42]} 28. Kf2 {[%clk 0:00:51]}  Ke7 {[%clk 0:01:35]} 29. Ke1 {[%clk 0:00:42]}  Kd6 {[%clk 0:01:14]} 30. Rd1+ {[%clk 0:00:26]}  Ke5 {[%clk 0:01:02]} 31. Rb1 {[%clk 0:00:24]}  g5 {[%clk 0:00:52]} 32. Bxc4 {[%clk 0:00:09]}  Rxc4 {[%clk 0:00:53]} 33. Rb5+ {[%clk 0:00:10]}  Kf4 {[%clk 0:00:54]} 34. Rxa5 {[%clk 0:00:11]}  Rxc3 {[%clk 0:00:54]} 35. Ra7 {[%clk 0:00:09]}  f5 {[%clk 0:00:54]} 36. a5 {[%clk 0:00:08]}  Ra3 {[%clk 0:00:53]} 37. a6 {[%clk 0:00:08]}  Ke3 {[%clk 0:00:51]} 38. Kd1 {[%clk 0:00:07]}  Ra1+ {[%clk 0:00:51]} 39. Kc2 {[%clk 0:00:07]}  Ra2+ {[%clk 0:00:51]} 40. Kb3 {[%clk 0:00:06]}  Ra1 {[%clk 0:00:47]} 41. Ra8 {[%clk 0:00:02]}  Kf2 {[%clk 0:00:47]} 42. a7 {[%clk 0:00:01]}  Kxg2 {[%clk 0:00:47]} 43. Kb4 {[%clk 0:00:01]}  Kxf3 {[%clk 0:00:46]} 44. Kb5 {[%clk 0:00:02]}  e5 {[%clk 0:00:42]} 45. Kb6 {[%clk 0:00:02]}  f4 {[%clk 0:00:34]} 46. Re8 {[%clk 0:00:02]}  e4 {[%clk 0:00:32]} 47. Kb7 {[%clk 0:00:01]}  e3 {[%clk 0:00:32]} 48. a8=Q {[%clk 0:00:01]}  Rxa8 {[%clk 0:00:31]} 49. Kxa8 {[%clk 0:00:01]}  Kf2 {[%clk 0:00:32]} 50. Kb7 {[%clk 0:00:02]}  e2 {[%clk 0:00:32]} 51. Kc6 {[%clk 0:00:00]}  e1=Q {[%clk 0:00:32]} 0-1


[Site "https://www.chess.com"]

[Event "Titled Tuesday Blitz November 14 Early 2023"]
[White "Shohat, Yotam"]
[Black "alfianasybullina"]
[WhiteFideId "2813955"]
[WhiteElo "2506"]
[BlackElo "2282"]
[Result "1-0"]
[Round "7"]
[TimeControl "180+1"]
[Date "2023.11.14"]
[WhiteClock "0:01:36"]
[BlackClock "0:01:27"]
[Board "134"]

1. e4 {[%clk 0:03:00]}  c6 {[%clk 0:03:00]} 2. c4 {[%clk 0:02:57]}  d5 {[%clk 0:03:00]} 3. cxd5 {[%clk 0:02:57]}  cxd5 {[%clk 0:03:01]} 4. exd5 {[%clk 0:02:58]}  Nf6 {[%clk 0:03:01]} 5. Nc3 {[%clk 0:02:59]}  Nxd5 {[%clk 0:02:59]} 6. Nf3 {[%clk 0:02:59]}  Nc6 {[%clk 0:02:58]} 7. Bb5 {[%clk 0:02:50]}  a6 {[%clk 0:02:50]} 8. Ba4 {[%clk 0:02:31]}  b5 {[%clk 0:02:49]} 9. Bb3 {[%clk 0:02:28]}  Nf4 {[%clk 0:02:46]} 10. O-O {[%clk 0:02:22]}  Be6 {[%clk 0:02:42]} 11. d4 {[%clk 0:02:20]}  Bxb3 {[%clk 0:02:32]} 12. Qxb3 {[%clk 0:02:19]}  Ng6 {[%clk 0:02:32]} 13. d5 {[%clk 0:02:17]}  Nce5 {[%clk 0:02:27]} 14. Nxe5 {[%clk 0:02:17]}  Nxe5 {[%clk 0:02:27]} 15. a4 {[%clk 0:02:14]}  bxa4 {[%clk 0:02:18]} 16. Qxa4+ {[%clk 0:02:06]}  Qd7 {[%clk 0:02:16]} 17. Qe4 {[%clk 0:02:06]}  Ng4 {[%clk 0:02:02]} 18. d6 {[%clk 0:02:03]}  Rd8 {[%clk 0:01:55]} 19. Nd5 {[%clk 0:02:01]}  Nf6 {[%clk 0:01:53]} 20. Nc7+ {[%clk 0:01:46]}  Qxc7 {[%clk 0:01:53]} 21. dxc7 {[%clk 0:01:47]}  Nxe4 {[%clk 0:01:53]} 22. cxd8=Q+ {[%clk 0:01:47]}  Kxd8 {[%clk 0:01:53]} 23. Rxa6 {[%clk 0:01:47]}  e6 {[%clk 0:01:48]} 24. Ra8+ {[%clk 0:01:46]}  Ke7 {[%clk 0:01:48]} 25. b3 {[%clk 0:01:41]}  f6 {[%clk 0:01:45]} 26. Re1 {[%clk 0:01:40]}  Nc3 {[%clk 0:01:28]} 27. Ba3+ {[%clk 0:01:36]}  Kf7 {[%clk 0:01:28]} 28. Rxf8+ {[%clk 0:01:36]}  Rxf8 {[%clk 0:01:29]} 29. Bxf8 {[%clk 0:01:36]}  Kxf8 {[%clk 0:01:27]} 30. Rxe6 {[%clk 0:01:36]} 1-0


[Site "https://www.chess.com"]

[Event "Titled Tuesday Blitz November 14 Early 2023"]
[White "MIss_MIaMI"]
[Black "Wu, Derek"]
[BlackFideId "30914558"]
[WhiteElo "2344"]
[BlackElo "2656"]
[Result "0-1"]
[Round "7"]
[TimeControl "180+1"]
[Date "2023.11.14"]
[WhiteClock "0:00:44"]
[BlackClock "0:01:11"]
[Board "137"]

1. e4 {[%clk 0:03:00]}  c5 {[%clk 0:02:59]} 2. Nf3 {[%clk 0:03:01]}  Nc6 {[%clk 0:02:59]} 3. d4 {[%clk 0:03:01]}  cxd4 {[%clk 0:03:00]} 4. c3 {[%clk 0:03:02]}  Nf6 {[%clk 0:02:59]} 5. Bd3 {[%clk 0:03:02]}  dxc3 {[%clk 0:02:56]} 6. Nxc3 {[%clk 0:03:03]}  d6 {[%clk 0:02:56]} 7. O-O {[%clk 0:03:01]}  Bg4 {[%clk 0:02:55]} 8. h3 {[%clk 0:02:56]}  Bh5 {[%clk 0:02:53]} 9. Be2 {[%clk 0:02:54]}  e6 {[%clk 0:02:51]} 10. a3 {[%clk 0:02:50]}  Be7 {[%clk 0:02:50]} 11. b4 {[%clk 0:02:50]}  O-O {[%clk 0:02:48]} 12. Bb2 {[%clk 0:02:50]}  Rc8 {[%clk 0:02:45]} 13. Rc1 {[%clk 0:02:49]}  Nd7 {[%clk 0:02:37]} 14. Nb5 {[%clk 0:02:33]}  Bxf3 {[%clk 0:02:32]} 15. Bxf3 {[%clk 0:02:31]}  Nde5 {[%clk 0:02:32]} 16. Be2 {[%clk 0:02:30]}  a6 {[%clk 0:02:32]} 17. Nd4 {[%clk 0:02:23]}  Bf6 {[%clk 0:02:28]} 18. Nxc6 {[%clk 0:02:20]}  Rxc6 {[%clk 0:02:23]} 19. Rxc6 {[%clk 0:02:19]}  Nxc6 {[%clk 0:02:22]} 20. Bxf6 {[%clk 0:02:18]}  gxf6 {[%clk 0:02:18]} 21. f4 {[%clk 0:02:13]}  Qb6+ {[%clk 0:02:17]} 22. Kh2 {[%clk 0:02:12]}  Qd4 {[%clk 0:02:16]} 23. Qc2 {[%clk 0:02:12]}  Rd8 {[%clk 0:02:00]} 24. Rf3 {[%clk 0:02:07]}  Kf8 {[%clk 0:01:55]} 25. Rg3 {[%clk 0:01:41]}  Qf2 {[%clk 0:01:49]} 26. Rf3 {[%clk 0:01:33]}  Qe1 {[%clk 0:01:38]} 27. Bxa6 {[%clk 0:01:26]}  Nd4 {[%clk 0:01:37]} 28. Qc7 {[%clk 0:01:25]}  Nxf3+ {[%clk 0:01:37]} 29. gxf3 {[%clk 0:01:26]}  Qf2+ {[%clk 0:01:37]} 30. Kh1 {[%clk 0:01:25]}  Qxf3+ {[%clk 0:01:35]} 31. Kh2 {[%clk 0:01:25]}  Qxf4+ {[%clk 0:01:35]} 32. Kg1 {[%clk 0:01:23]}  Qg3+ {[%clk 0:01:32]} 33. Kf1 {[%clk 0:01:24]}  Qxh3+ {[%clk 0:01:32]} 34. Ke2 {[%clk 0:01:24]}  Qh2+ {[%clk 0:01:31]} 35. Ke3 {[%clk 0:01:23]}  Qg3+ {[%clk 0:01:28]} 36. Ke2 {[%clk 0:01:22]}  Re8 {[%clk 0:01:27]} 37. Bb5 {[%clk 0:01:18]}  Qh2+ {[%clk 0:01:23]} 38. Ke3 {[%clk 0:01:18]}  Qg1+ {[%clk 0:01:18]} 39. Ke2 {[%clk 0:01:16]}  Qg2+ {[%clk 0:01:18]} 40. Ke3 {[%clk 0:01:17]}  Qg5+ {[%clk 0:01:19]} 41. Kf3 {[%clk 0:01:07]}  Qxb5 {[%clk 0:01:19]} 42. Qxd6+ {[%clk 0:01:05]}  Kg7 {[%clk 0:01:19]} 43. Qg3+ {[%clk 0:01:05]}  Qg5 {[%clk 0:01:20]} 44. Qc7 {[%clk 0:01:03]}  Ra8 {[%clk 0:01:18]} 45. Qc3 {[%clk 0:00:58]}  Qh5+ {[%clk 0:01:17]} 46. Kf2 {[%clk 0:00:56]}  Qh2+ {[%clk 0:01:16]} 47. Kf1 {[%clk 0:00:55]}  Rd8 {[%clk 0:01:14]} 48. Qf3 {[%clk 0:00:51]}  Rd2 {[%clk 0:01:11]} 49. Qg4+ {[%clk 0:00:49]}  Kf8 {[%clk 0:01:12]} 50. Qf3 {[%clk 0:00:44]}  Ra2 {[%clk 0:01:11]} 0-1


[Site "https://www.chess.com"]

[Event "Titled Tuesday Blitz November 14 Early 2023"]
[White "KorolDimitriy75"]
[Black "Borgaonkar Akshay"]
[BlackFideId "25639110"]
[WhiteElo "2342"]
[BlackElo "2627"]
[Result "0-1"]
[Round "7"]
[TimeControl "180+1"]
[Date "2023.11.14"]
[WhiteClock "0:00:00"]
[BlackClock "0:00:02"]
[Board "138"]

1. d4 {[%clk 0:03:00]}  g6 {[%clk 0:02:59]} 2. c4 {[%clk 0:03:01]}  Bg7 {[%clk 0:03:00]} 3. Nf3 {[%clk 0:03:01]}  Nf6 {[%clk 0:02:56]} 4. Nc3 {[%clk 0:03:01]}  O-O {[%clk 0:02:57]} 5. e4 {[%clk 0:03:01]}  d6 {[%clk 0:02:57]} 6. Be2 {[%clk 0:03:01]}  e5 {[%clk 0:02:57]} 7. dxe5 {[%clk 0:03:02]}  dxe5 {[%clk 0:02:57]} 8. Qxd8 {[%clk 0:03:03]}  Rxd8 {[%clk 0:02:58]} 9. Bg5 {[%clk 0:03:04]}  c6 {[%clk 0:02:52]} 10. Nxe5 {[%clk 0:03:04]}  Re8 {[%clk 0:02:50]} 11. O-O-O {[%clk 0:03:04]}  Na6 {[%clk 0:02:38]} 12. Rd6 {[%clk 0:03:04]}  Be6 {[%clk 0:02:17]} 13. f4 {[%clk 0:03:03]}  Nc5 {[%clk 0:02:12]} 14. Bf3 {[%clk 0:03:03]}  h6 {[%clk 0:02:08]} 15. Bh4 {[%clk 0:03:04]}  Nfd7 {[%clk 0:01:52]} 16. Nxd7 {[%clk 0:02:48]}  Nxd7 {[%clk 0:01:50]} 17. Kc2 {[%clk 0:02:04]}  Nb6 {[%clk 0:01:35]} 18. b3 {[%clk 0:02:04]}  a5 {[%clk 0:01:35]} 19. Rhd1 {[%clk 0:01:43]}  a4 {[%clk 0:01:09]} 20. Bf2 {[%clk 0:01:32]}  axb3+ {[%clk 0:01:00]} 21. axb3 {[%clk 0:01:33]}  Nc8 {[%clk 0:01:00]} 22. Rd8 {[%clk 0:01:31]}  Ne7 {[%clk 0:00:57]} 23. Rxe8+ {[%clk 0:01:26]}  Rxe8 {[%clk 0:00:58]} 24. e5 {[%clk 0:01:19]}  Ra8 {[%clk 0:00:52]} 25. Bc5 {[%clk 0:01:07]}  Nf5 {[%clk 0:00:51]} 26. g3 {[%clk 0:01:06]}  Bf8 {[%clk 0:00:49]} 27. Bg1 {[%clk 0:00:39]}  Kh7 {[%clk 0:00:47]} 28. Rd2 {[%clk 0:00:20]}  Ra1 {[%clk 0:00:44]} 29. Rd1 {[%clk 0:00:20]}  Ra8 {[%clk 0:00:44]} 30. Bf2 {[%clk 0:00:19]}  h5 {[%clk 0:00:40]} 31. Rd2 {[%clk 0:00:17]}  Bb4 {[%clk 0:00:35]} 32. Rd1 {[%clk 0:00:13]}  Kg7 {[%clk 0:00:30]} 33. Bb6 {[%clk 0:00:12]}  Ne7 {[%clk 0:00:22]} 34. Be4 {[%clk 0:00:08]}  Nf5 {[%clk 0:00:21]} 35. Rd2 {[%clk 0:00:07]}  c5 {[%clk 0:00:18]} 36. Kb2 {[%clk 0:00:05]}  Ba3+ {[%clk 0:00:12]} 37. Kc2 {[%clk 0:00:05]}  Nd4+ {[%clk 0:00:11]} 38. Kd3 {[%clk 0:00:04]}  Nxb3 {[%clk 0:00:11]} 39. Rd1 {[%clk 0:00:04]}  Nc1+ {[%clk 0:00:11]} 40. Kc2 {[%clk 0:00:04]}  Bxc4 {[%clk 0:00:09]} 41. Rxc1 {[%clk 0:00:02]}  Bxc1 {[%clk 0:00:09]} 42. Kxc1 {[%clk 0:00:02]}  Ra1+ {[%clk 0:00:10]} 43. Kc2 {[%clk 0:00:02]}  Rf1 {[%clk 0:00:03]} 44. Bxc5 {[%clk 0:00:02]}  Be6 {[%clk 0:00:04]} 45. Bxb7 {[%clk 0:00:01]}  Bf5+ {[%clk 0:00:04]} 46. Kb2 {[%clk 0:00:00]}  Re1 {[%clk 0:00:02]} 0-1


[Site "https://www.chess.com"]